[Event "Western Asian Juniors Chess-ch 2023"]
[Site "Colombo"]
[Date "2023.12.03"]
[Round "6.3"]
[White "Manon, Reja Neer"]
[Black "De Silva, L M S T"]
[Result "0-1"]
[ECO "C78"]
[WhiteElo "2207"]
[BlackElo "2394"]
[Annotator "RC"]
[PlyCount "110"]
[EventDate "2023.11.30"]
[EventCountry "SRI"]
[SourceTitle "playchess.com"]
[Source "ChessBase"]
[SourceQuality "1"]
[TimeControl "5400+30"]

1. e4 {[%emt 0:00:19]} e5 {[%emt 0:00:10]} 2. Nf3 {[%emt 0:00:10]} Nc6 {[%emt 0:00:06]} 3. Bb5 {[%emt 0:00:04]} a6 {[%emt 0:00:07]} 4. Ba4 {[%emt 0:00:02]} Nf6 {[%emt 0:00:05]} 5. O-O {[%emt 0:00:04]} b5 {[%emt 0:03:00]} 6. Bb3 {[%emt 0:04:19]} Bb7 {[%emt 0:00:07]} 7. Re1 {[%emt 0:01:47]} Bc5 {[%emt 0:00:07]} 8. c3 {[%emt 0:05:27]} d6 {[%emt 0:00:06]} 9. d4 {[%emt 0:00:09]} Bb6 {[%emt 0:00:18]} 10. Be3 {[%emt 0:04:01]} O-O {[%emt 0:01:31]} 11. Nbd2 {[%emt 0:04:35]} h6 {[%emt 0:18:07]} 12. h3 {[%emt 0:10:57]} exd4 {[%emt 0:17:51]} 13. cxd4 {[%emt 0:00:57]} Nb4 {[%emt 0:00:53]} 14. d5 {[%emt 0:14:56]} Nd3 {[%emt 0:03:25]} 15. Re2 {[%emt 0:00:19]} Nh5 {[%emt 0:23:28]} 16. Bxb6 {[%emt 0:08:47]} cxb6 {[%emt 0:00:03]} 17. Re3 {[%emt 0:02:12]} Nxb2 {[%emt 0:05:33]} 18. Qc2 {[%emt 0:00:12]} Na4 {[%emt 0:00:19]} 19. Bxa4 {[%emt 0:00:17]} Rc8 {[%emt 0:01:00]} 20. Qd1 {[%emt 0:01:02]} bxa4 {[%emt 0:00:08]} 21. Qxa4 {[%emt 0:00:03]} Nf4 {[%emt 0:03:07]} 22. Rae1 {[%emt 0:13:35]} b5 {[%emt 0:04:22]} 23. Qa3 {[%emt 0:08:25]} Rc2 {[%emt 0:06:21]} 24. Nf1 {[%emt 0:02:55]} Qf6 {[%emt 0:01:50]} 25. Qa5 {[%emt 0:06:46]} Qd8 {[%emt 0:02:22]} 26. Qa3 {[%emt 0:00:37]} Qb6 {[%emt 0:01:22]} 27. Ng3 {[%emt 0:01:29]} g6 {[%emt 0:00:43]} 28. Nh2 {[%emt 0:03:52]} Rfc8 {[%emt 0:03:37]} 29. Rf3 {[%emt 0:00:34]} b4 {[%emt 0:00:14]} 30. Qa4 {[%emt 0:00:06]} Nd3 {[%emt 0:00:12]} 31. Ng4 {[%emt 0:05:14]} Nxe1 {[%emt 0:00:38]} 32. Nxh6+ {[%emt 0:00:08]} Kh8 {[%emt 0:00:43]} 33. Rxf7 {[%emt 0:00:02]} Rxf2 {[%emt 0:00:55]} 34. Rxf2 {[%emt 0:00:48]} Nd3 {[%emt 0:00:02]} 35. Ng4 {[%emt 0:02:17]} Nxf2 {[%emt 0:00:35]} 36. Nxf2 {[%emt 0:00:01]} Qe3 {[%emt 0:02:45]} 37. Nf1 {[%emt 0:00:34]} Qd4 {[%emt 0:02:10]} 38. Qb3 {[%emt 0:00:51]} Rc3 {[%emt 0:00:34]} 39. Qa4 {[%emt 0:00:20]} Rc7 {[%emt 0:00:21]} 40. Qb3 {[%emt 0:00:43]} Qc3 {[%emt 0:00:14]} 41. Qa4 {[%emt 0:00:27]} Rf7 {[%emt 0:00:28]} 42. Qe8+ {[%emt 0:00:24]} Kg7 {[%emt 0:00:02]} 43. Ng4 {[%emt 0:00:11]} Qa1 {[%emt 0:00:42]} 44. Nge3 {[%emt 0:00:05]} Qxa2 {[%emt 0:00:32]} 45. e5 {[%emt 0:00:35]} Qf2+ {[%emt 0:00:55]} 46. Kh1 {[%emt 0:00:08]} dxe5 {[%emt 0:00:16]} 47. Qxe5+ {[%emt 0:00:36]} Qf6 {[%emt 0:00:07]} 48. Qe4 {[%emt 0:00:03]} b3 {[%emt 0:01:15]} 49. Ng3 {[%emt 0:00:09]} b2 {[%emt 0:00:29]} 50. Qd3 {[%emt 0:00:59]} Qe5 {[%emt 0:00:24]} 51. Ne4 {[%emt 0:00:59]} Re7 {[%emt 0:00:38]} 52. Ng4 {[%emt 0:00:26]} Qxe4 {[%emt 0:00:35]} 53. Qc3+ {[%emt 0:00:01]} Kg8 {[%emt 0:00:11]} 54. Qxb2 {[%emt 0:00:33]} Qf4 {[%emt 0:00:21]} 55. Qa1 {[%emt 0:01:04]} Rc7 {[%emt 0:00:15]} 0-1

[Event "Western Asian Juniors Chess-ch 2023"]
[Site "Colombo"]
[Date "2023.12.03"]
[Round "6.4"]
[White "Liyanage, Ranindu Dilshan"]
[Black "Senevirathne, D C B K"]
[Result "1-0"]
[ECO "A09"]
[WhiteElo "2400"]
[BlackElo "1482"]
[Annotator "RC"]
[PlyCount "72"]
[EventDate "2023.11.30"]
[EventCountry "SRI"]
[SourceTitle "playchess.com"]
[Source "ChessBase"]
[SourceQuality "1"]
[TimeControl "5400+30"]

1. Nf3 {[%emt 0:02:17]} d5 {[%emt 0:01:03]} 2. c4 {[%emt 0:01:08]} d4 {[%emt 0:01:37]} 3. e3 {[%emt 0:01:33]} c5 {[%emt 0:01:57]} 4. b4 {[%emt 0:00:28]} Bg4 {[%emt 0:01:42]} 5. exd4 {[%emt 0:12:21]} cxd4 {[%emt 0:01:55]} 6. d3 {[%emt 0:00:10]} e5 {[%emt 0:06:28]} 7. a3 {[%emt 0:01:34]} Qf6 {[%emt 0:02:23]} 8. Nbd2 {[%emt 0:01:26]} Nd7 {[%emt 0:03:46]} 9. Be2 {[%emt 0:00:47]} Be7 {[%emt 0:00:55]} 10. Nxd4 {[%emt 0:09:44]} e4 {[%emt 0:02:31]} 11. Bb2 {[%emt 0:03:03]} Bxe2 {[%emt 0:02:28]} 12. Qxe2 {[%emt 0:00:06]} exd3 {[%emt 0:01:18]} 13. Qxd3 {[%emt 0:00:10]} Nh6 {[%emt 0:04:58]} 14. O-O {[%emt 0:02:05]} O-O {[%emt 0:01:17]} 15. Qb3 {[%emt 0:02:44]} Qf4 {[%emt 0:05:10]} 16. N2f3 {[%emt 0:01:01]} Bf6 {[%emt 0:59:02]} 17. Rad1 {[%emt 0:00:31]} Ng4 {[%emt 0:00:00]} 18. h3 {[%emt 0:07:51]} Nge5 {[%emt 0:00:00]} 19. c5 {[%emt 0:02:28]} Rad8 {[%emt 0:00:00]} 20. Rfe1 {[%emt 0:02:41]} Rfe8 {[%emt 0:00:00]} 21. Bc1 {[%emt 0:02:00]} Nxf3+ {[%emt 0:00:00]} 22. Nxf3 {[%emt 0:00:06]} Qc7 {[%emt 0:00:00]} 23. Qc4 {[%emt 0:03:49]} a6 {[%emt 0:00:00]} 24. Bf4 {[%emt 0:01:09]} Qc6 {[%emt 0:00:00]} 25. Rxe8+ {[%emt 0:01:16]} Rxe8 {[%emt 0:00:00]} 26. Qd5 {[%emt 0:00:25]} Qxd5 {[%emt 0:00:00]} 27. Rxd5 {[%emt 0:00:06]} Nf8 {[%emt 0:00:00]} 28. Be5 {[%emt 0:00:27]} Bd8 {[%emt 0:00:00]} 29. Bd4 {[%emt 0:01:22]} f6 {[%emt 0:00:00]} 30. Be3 {[%emt 0:00:37]} Kf7 {[%emt 0:00:00]} 31. Kf1 {[%emt 0:00:55]} Bc7 {[%emt 0:00:00]} 32. Ke2 {[%emt 0:00:39]} Ke6 {[%emt 0:00:00]} 33. Rd2 {[%emt 0:00:31]} g5 {[%emt 0:00:00]} 34. Nd4+ {[%emt 0:00:12]} Ke5 {[%emt 0:00:00]} 35. Kd3 {[%emt 0:01:52]} Nd7 {[%emt 0:00:00]} 36. Bf4+ {[%emt 0:04:41]} Kd5 {[%emt 0:10:00]} 1-0

[Event "Western Asian Juniors Chess-ch 2023"]
[Site "Colombo"]
[Date "2023.12.03"]
[Round "6.5"]
[White "Raahul V S"]
[Black "Thilakarathne, G M H"]
[Result "1/2-1/2"]
[ECO "A28"]
[WhiteElo "2350"]
[BlackElo "2389"]
[Annotator "RC"]
[PlyCount "81"]
[EventDate "2023.11.30"]
[EventCountry "SRI"]
[SourceTitle "playchess.com"]
[Source "ChessBase"]
[SourceQuality "1"]
[TimeControl "5400+30"]

1. c4 {[%emt 0:00:56]} e5 {[%emt 0:00:12]} 2. Nc3 {[%emt 0:00:06]} Nf6 {[%emt 0:00:08]} 3. Nf3 {[%emt 0:00:22]} Nc6 {[%emt 0:00:06]} 4. e4 {[%emt 0:00:05]} g6 {[%emt 0:22:27]} 5. d4 {[%emt 0:00:15]} exd4 {[%emt 0:01:29]} 6. Nxd4 {[%emt 0:00:06]} Bg7 {[%emt 0:02:21]} 7. Nc2 {[%emt 0:00:35]} d6 {[%emt 0:02:30]} 8. Be2 {[%emt 0:00:10]} Nd7 {[%emt 0:05:42]} 9. O-O {[%emt 0:01:05]} Nc5 {[%emt 0:00:13]} 10. f3 {[%emt 0:00:26]} O-O {[%emt 0:06:24]} 11. Be3 {[%emt 0:09:59]} a5 {[%emt 0:18:36]} 12. Qd2 {[%emt 0:09:26]} f5 {[%emt 0:06:18]} 13. Bg5 {[%emt 0:05:19]} Bf6 {[%emt 0:07:27]} 14. Bxf6 {[%emt 0:08:39]} Qxf6 {[%emt 0:00:31]} 15. exf5 {[%emt 0:01:38]} Bxf5 {[%emt 0:00:08]} 16. Ne3 {[%emt 0:00:20]} Rae8 {[%emt 0:04:19]} 17. Rad1 {[%emt 0:02:31]} Qg7 {[%emt 0:03:27]} 18. Nxf5 {[%emt 0:09:28]} Rxf5 {[%emt 0:00:47]} 19. f4 {[%emt 0:07:04]} Kh8 {[%emt 0:06:28]} 20. Bf3 {[%emt 0:03:28]} Nb4 {[%emt 0:00:54]} 21. g3 {[%emt 0:07:17]} Rf7 {[%emt 0:04:25]} 22. Qd4 {[%emt 0:17:20]} a4 {[%emt 0:02:59]} 23. Qxg7+ {[%emt 0:02:11]} Kxg7 {[%emt 0:00:01]} 24. Rd2 {[%emt 0:00:07]} Rfe7 {[%emt 0:01:55]} 25. Bd1 {[%emt 0:02:16]} Ra8 {[%emt 0:01:38]} 26. g4 {[%emt 0:03:16]} a3 {[%emt 0:00:21]} 27. f5 {[%emt 0:00:26]} Re3 {[%emt 0:00:53]} 28. Nb5 {[%emt 0:00:23]} Ne4 {[%emt 0:01:04]} 29. Rg2 {[%emt 0:00:01]} axb2 {[%emt 0:00:41]} 30. Rxb2 {[%emt 0:00:06]} Nd3 {[%emt 0:00:14]} 31. Re2 {[%emt 0:02:00]} Rxe2 {[%emt 0:00:27]} 32. Bxe2 {[%emt 0:00:02]} Ne5 {[%emt 0:00:23]} 33. Nxc7 {[%emt 0:00:15]} Rxa2 {[%emt 0:00:09]} 34. Ne6+ {[%emt 0:00:03]} Kf7 {[%emt 0:00:17]} 35. fxg6+ {[%emt 0:00:58]} Kxg6 {[%emt 0:00:11]} 36. h4 {[%emt 0:00:10]} h6 {[%emt 0:00:23]} 37. h5+ {[%emt 0:02:37]} Kh7 {[%emt 0:00:15]} 38. Bd3 {[%emt 0:00:07]} Nxd3 {[%emt 0:00:40]} 39. Rf7+ {[%emt 0:00:05]} Kg8 {[%emt 0:00:05]} 40. Rf8+ {[%emt 0:00:01]} Kh7 {[%emt 0:00:06]} 41. Rf7+ {[%emt 0:00:02]} 1/2-1/2

[Event "Western Asian Juniors Chess-ch 2023"]
[Site "Colombo"]
[Date "2023.12.03"]
[Round "6.6"]
[White "Ankit Ray"]
[Black "Halynyazow, Vepaly"]
[Result "1-0"]
[ECO "A11"]
[WhiteElo "1902"]
[BlackElo "2020"]
[Annotator "NA RC"]
[PlyCount "40"]
[EventDate "2023.11.30"]
[EventCountry "SRI"]
[SourceTitle "playchess.com"]
[Source "ChessBase"]
[SourceQuality "1"]
[TimeControl "5400+30"]

1. Nf3 {[%emt 0:00:37]} d5 {[%emt 0:00:26]} 2. g3 {[%emt 0:00:13]} Nf6 {[%emt 0:01:41]} 3. Bg2 {[%emt 0:00:19]} Bf5 {[%emt 0:01:37]} 4. c4 {[%emt 0:00:38]} c6 {[%emt 0:00:28]} 5. O-O {[%emt 0:03:50]} e6 {[%emt 0:00:23]} 6. d3 {[%emt 0:00:11]} Be7 {[%emt 0:00:46]} 7. cxd5 {[%emt 0:01:39]} exd5 {[%emt 0:00:12]} 8. Qb3 {[%emt 0:00:08]} Qc8 {[%emt 0:02:06]} 9. Nc3 {[%emt 0:00:42]} O-O {[%emt 0:00:31]} 10. Re1 {[%emt 0:01:23]} Na6 {[%emt 0:03:45]} 11. Bf4 {[%emt 0:00:30]} Nc5 {[%emt 0:00:30]} 12. Qc2 {[%emt 0:00:30]} h6 {[%emt 0:00:30]} 13. e4 {[%emt 0:00:30]} Bh7 {[%emt 0:00:30]} 14. Nd4 {[%emt 0:14:30]} Re8 {[%emt 0:08:09]} 15. Rad1 {[%emt 0:01:32]} Bf8 {[%emt 0:01:43]} 16. Nb3 {[%emt 0:03:51]} Ne6 {[%emt 0:08:06]} 17. Be5 {[%emt 0:00:37]} Ng4 {[%emt 0:11:37]} 18. exd5 {[%emt 0:18:42]} cxd5 {[%emt 0:00:07]} 19. Qd2 {[%emt 0:02:37]} d4 {[%emt 0:23:14]} 20. Bxd4 {[%emt 0:09:21]} Rd8 {[%emt 0:00:33]} 1-0

[Event "Western Asian Juniors Chess-ch 2023"]
[Site "Colombo"]
[Date "2023.12.03"]
[Round "6.7"]
[White "Senevirathne, S D B K"]
[Black "Liyanage, Pesandu Rashmitha"]
[Result "*"]
[ECO "B23"]
[WhiteElo "1802"]
[BlackElo "1766"]
[Annotator "NA RC"]
[PlyCount "61"]
[EventDate "2023.11.30"]
[EventCountry "SRI"]
[SourceTitle "playchess.com"]
[Source "ChessBase"]
[SourceQuality "1"]
[TimeControl "5400+30"]

1. e4 {[%emt 0:00:05]} c5 {[%emt 0:00:40]} 2. Nc3 {[%emt 0:00:07]} d6 {[%emt 0:00:10]} 3. d4 {[%emt 0:00:07]} cxd4 {[%emt 0:00:06]} 4. Qxd4 {[%emt 0:00:09]} Nc6 {[%emt 0:00:01]} 5. Qd2 {[%emt 0:00:08]} g6 {[%emt 0:00:03]} 6. b3 {[%emt 0:00:06]} Bh6 {[%emt 0:00:09]} 7. f4 {[%emt 0:00:05]} Nf6 {[%emt 0:00:07]} 8. Bb2 {[%emt 0:00:06]} O-O {[%emt 0:00:04]} 9. O-O-O {[%emt 0:00:26]} e5 {[%emt 0:00:03]} 10. Nge2 {[%emt 0:05:50]} Bg4 {[%emt 0:03:16]} 11. Qxd6 {[%emt 0:13:45]} exf4 {[%emt 0:08:36]} 12. Kb1 {[%emt 0:03:44]} Re8 {[%emt 0:23:50]} 13. h3 {[%emt 0:06:31]} Bh5 {[%emt 0:23:17]} 14. g4 {[%emt 0:15:06]} fxg3 {[%emt 0:06:40]} 15. Qxg3 {[%emt 0:00:14]} Qe7 {[%emt 0:07:12]} 16. Nd5 {[%emt 0:21:21]} Nxd5 {[%emt 0:01:44]} 17. Rxd5 {[%emt 0:00:53]} Bxe2 {[%emt 0:09:34]} 18. Qc3 {[%emt 0:00:33]} f6 {[%emt 0:04:10]} 19. Bxe2 {[%emt 0:00:12]} Ne5 {[%emt 0:00:44]} 20. Rhd1 {[%emt 0:01:34]} Rac8 {[%emt 0:00:00]} 21. Qd4 {[%emt 0:02:40]} a6 {[%emt 0:00:00]} 22. Rd6 {[%emt 0:02:17]} Kh8 {[%emt 0:00:00]} 23. Bg4 {[%emt 0:04:37]} Nxg4 {[%emt 0:00:00]} 24. hxg4 {[%emt 0:00:13]} Bg7 {[%emt 0:00:00]} 25. Rd7 {[%emt 0:01:32]} Qxe4 {[%emt 0:00:00]} 26. g5 {[%emt 0:02:35]} Qxd4 {[%emt 0:02:06]} 27. Bxd4 {[%emt 0:00:07]} Rc6 {[%emt 0:01:05]} 28. Rf1 {[%emt 0:00:51]} Rf8 {[%emt 0:00:00]} 29. Re1 {[%emt 0:00:12]} Rg8 {[%emt 0:00:28]} 30. Ree7 {[%emt 0:00:26]} b5 {[%emt 0:00:31]} 31. gxf6 {[%emt 0:00:24]} *

[Event "Western Asian Juniors Chess-ch 2023"]
[Site "Colombo"]
[Date "2023.12.03"]
[Round "6.8"]
[White "Kulathilake, S M M P"]
[Black "Dissanayake, R K T"]
[Result "1/2-1/2"]
[ECO "E50"]
[WhiteElo "1583"]
[BlackElo "1865"]
[Annotator "NA RC"]
[PlyCount "53"]
[EventDate "2023.11.30"]
[EventCountry "SRI"]
[SourceTitle "playchess.com"]
[Source "ChessBase"]
[SourceQuality "1"]
[TimeControl "5400+30"]

1. d4 {[%emt 0:00:13]} Nf6 {[%emt 0:00:07]} 2. c4 {[%emt 0:00:06]} e6 {[%emt 0:00:24]} 3. Nc3 {[%emt 0:00:06]} Bb4 {[%emt 0:00:05]} 4. Nf3 {[%emt 0:00:05]} O-O {[%emt 0:00:41]} 5. e3 {[%emt 0:00:27]} d5 {[%emt 0:00:13]} 6. Be2 {[%emt 0:00:08]} Nbd7 {[%emt 0:01:30]} 7. O-O {[%emt 0:00:21]} b6 {[%emt 0:02:12]} 8. Bd2 {[%emt 0:00:14]} Bb7 {[%emt 0:03:19]} 9. Nxd5 {[%emt 0:00:50]} Bd6 {[%emt 0:08:28]} 10. Nc3 {[%emt 0:00:47]} c5 {[%emt 0:01:28]} 11. Qc2 {[%emt 0:05:51]} Rc8 {[%emt 0:00:37]} 12. b3 {[%emt 0:02:48]} a6 {[%emt 0:02:33]} 13. Rfd1 {[%emt 0:08:33]} Qc7 {[%emt 0:02:08]} 14. h3 {[%emt 0:01:27]} Rfd8 {[%emt 0:02:39]} 15. Be1 {[%emt 0:10:11]} cxd4 {[%emt 0:02:39]} 16. Nxd4 {[%emt 0:01:46]} Ne5 {[%emt 0:01:20]} 17. f4 {[%emt 0:12:14]} Ng6 {[%emt 0:02:30]} 18. Bf3 {[%emt 0:00:41]} Bc5 {[%emt 0:05:44]} 19. Bxb7 {[%emt 0:02:37]} Qxb7 {[%emt 0:00:32]} 20. Qf2 {[%emt 0:51:05]} e5 21. fxe5 {[%emt 0:00:30]} Nxe5 22. Kh1 {[%emt 0:00:30]} Re8 {[%emt 1:02:21]} 23. Qg3 {[%emt 0:00:30]} Bd6 {[%emt 0:00:30]} 24. Qf2 {[%emt 0:00:30]} Red8 {[%emt 0:00:30]} 25. Kg1 Bc5 26. Nce2 {[%emt 0:01:00]} Ne4 {[%emt 0:00:00]} 27. Qf4 1/2-1/2

[Event "Western Asian Juniors Chess-ch 2023"]
[Site "Colombo"]
[Date "2023.12.03"]
[Round "6.9"]
[White "Nabil Nazar, Mohamed"]
[Black "Sathsindu, W M Minura"]
[Result "1/2-1/2"]
[ECO "B27"]
[WhiteElo "1803"]
[BlackElo "1542"]
[Annotator "NA RC"]
[PlyCount "48"]
[EventDate "2023.11.30"]
[EventCountry "SRI"]
[SourceTitle "playchess.com"]
[Source "ChessBase"]
[SourceQuality "1"]
[TimeControl "5400+30"]

1. e4 {[%emt 0:01:56]} c5 {[%emt 0:00:32]} 2. Nc3 {[%emt 0:00:58]} g6 {[%emt 0:00:28]} 3. d4 {[%emt 0:00:57]} cxd4 {[%emt 0:00:21]} 4. Qxd4 {[%emt 0:00:06]} Nf6 {[%emt 0:00:07]} 5. Nf3 {[%emt 0:00:56]} Nc6 {[%emt 0:00:23]} 6. Qa4 {[%emt 0:00:02]} d6 {[%emt 0:05:27]} 7. e5 {[%emt 0:00:02]} dxe5 {[%emt 0:01:45]} 8. Nxe5 {[%emt 0:00:03]} Bd7 {[%emt 0:02:36]} 9. Nxd7 {[%emt 0:00:02]} Qxd7 {[%emt 0:00:19]} 10. Bf4 {[%emt 0:00:59]} Bg7 {[%emt 0:05:54]} 11. Rd1 {[%emt 0:00:15]} Qe6+ {[%emt 0:01:09]} 12. Be2 {[%emt 0:00:06]} O-O {[%emt 0:00:46]} 13. O-O {[%emt 0:00:06]} a6 {[%emt 0:03:25]} 14. Rfe1 {[%emt 0:08:28]} Rad8 {[%emt 0:06:56]} 15. Bf3 {[%emt 0:13:28]} Rxd1 {[%emt 0:01:49]} 16. Rxd1 {[%emt 0:00:13]} Rc8 {[%emt 0:10:05]} 17. g3 {[%emt 0:07:43]} h5 {[%emt 0:03:36]} 18. h4 {[%emt 0:04:15]} Qf5 {[%emt 0:14:36]} 19. Kg2 {[%emt 0:14:09]} Kh7 {[%emt 0:13:27]} 20. Rd2 {[%emt 0:12:02]} Ng4 {[%emt 0:03:57]} 21. Be4 {[%emt 0:02:21]} Qc5 {[%emt 0:00:52]} 22. Qb3 {[%emt 0:05:24]} f5 {[%emt 0:23:00]} 23. f3 Ne3+ {[%emt 0:00:30]} 24. Bxe3 Qxe3 1/2-1/2

[Event "Western Asian Juniors Chess-ch 2023"]
[Site "Colombo"]
[Date "2023.12.03"]
[Round "6.10"]
[White "Mujahid Bin Yazeed"]
[Black "Galkotuwa, K A R G W D R B G"]
[Result "1-0"]
[ECO "B72"]
[WhiteElo "1832"]
[BlackElo "1532"]
[Annotator "NA RC"]
[PlyCount "24"]
[EventDate "2023.11.30"]
[EventCountry "SRI"]
[SourceTitle "playchess.com"]
[Source "ChessBase"]
[SourceQuality "1"]
[TimeControl "5400+30"]

1. e4 {[%emt 0:04:33]} c5 {[%emt 0:00:15]} 2. Nc3 {[%emt 0:00:13]} Nc6 {[%emt 0:02:14]} 3. Nf3 {[%emt 0:01:18]} g6 {[%emt 0:05:12]} 4. d4 {[%emt 0:00:15]} cxd4 {[%emt 0:00:10]} 5. Nxd4 {[%emt 0:00:04]} Bg7 {[%emt 0:00:15]} 6. Be3 {[%emt 0:00:20]} d6 {[%emt 0:01:26]} 7. Nb3 {[%emt 0:01:31]} Nf6 {[%emt 0:02:01]} 8. Be2 {[%emt 0:00:54]} a6 {[%emt 0:00:30]} 9. O-O {[%emt 0:01:23]} b5 {[%emt 0:00:30]} 10. f4 {[%emt 0:00:30]} Bb7 {[%emt 0:06:48]} 11. Bf3 {[%emt 0:12:27]} Qc7 {[%emt 0:10:06]} 12. g4 {[%emt 0:03:20]} e6 {[%emt 0:04:47]} 1-0

[Event "Western Asian Juniors Chess-ch 2023"]
[Site "Colombo"]
[Date "2023.12.03"]
[Round "7.1"]
[White "Mazhkenov, Alisher"]
[Black "De Silva, L M S T"]
[Result "0-1"]
[ECO "E14"]
[WhiteElo "2105"]
[BlackElo "2394"]
[Annotator "ChessBase"]
[PlyCount "88"]
[EventDate "2023.11.30"]
[EventCountry "SRI"]
[SourceTitle "playchess.com"]
[Source "ChessBase"]
[SourceQuality "1"]
[TimeControl "5400+30"]

1. d4 {[%emt 0:00:36]} Nf6 {[%emt 0:00:27]} 2. Nf3 {[%emt 0:00:20]} e6 {[%emt 0:00:08]} 3. e3 {[%emt 0:00:29]} d5 {[%emt 0:00:55]} 4. Bd3 {[%emt 0:00:15]} Bd6 {[%emt 0:00:36]} 5. O-O {[%emt 0:05:21]} O-O {[%emt 0:01:05]} 6. Nbd2 {[%emt 0:03:58]} c5 {[%emt 0:01:52]} 7. b3 {[%emt 0:01:01]} Nc6 {[%emt 0:01:54]} 8. Bb2 {[%emt 0:01:01]} b6 {[%emt 0:02:18]} 9. dxc5 {[%emt 0:06:10]} Bxc5 {[%emt 0:04:24]} 10. c4 {[%emt 0:02:32]} Bb7 {[%emt 0:04:43]} 11. a3 {[%emt 0:15:39]} a5 {[%emt 0:16:58]} 12. Qe2 {[%emt 0:05:49]} d4 {[%emt 0:07:49]} 13. e4 {[%emt 0:02:30]} e5 {[%emt 0:01:03]} 14. Nh4 {[%emt 0:01:42]} Nd7 {[%emt 0:03:40]} 15. g3 {[%emt 0:01:32]} Be7 {[%emt 0:05:47]} 16. Nf5 {[%emt 0:05:56]} Bf6 {[%emt 0:00:42]} 17. f4 {[%emt 0:06:37]} Nc5 {[%emt 0:01:04]} 18. Rab1 {[%emt 0:01:10]} Kh8 {[%emt 0:02:12]} 19. Bc1 {[%emt 0:06:15]} g6 {[%emt 0:01:11]} 20. Nh6 {[%emt 0:00:34]} Bg7 {[%emt 0:01:49]} 21. Ng4 {[%emt 0:00:16]} exf4 {[%emt 0:01:52]} 22. gxf4 {[%emt 0:06:15]} f5 {[%emt 0:02:23]} 23. Nf2 {[%emt 0:00:44]} Nxd3 {[%emt 0:02:55]} 24. Qxd3 {[%emt 0:01:03]} fxe4 {[%emt 0:05:26]} 25. Ndxe4 {[%emt 0:00:41]} Ne7 {[%emt 0:03:54]} 26. Ng5 {[%emt 0:04:01]} Bc8 {[%emt 0:02:48]} 27. Bd2 {[%emt 0:03:28]} h6 {[%emt 0:00:40]} 28. Nge4 {[%emt 0:01:18]} Nf5 {[%emt 0:01:53]} 29. b4 {[%emt 0:01:42]} a4 {[%emt 0:00:47]} 30. Rbe1 {[%emt 0:01:06]} Bb7 {[%emt 0:00:35]} 31. Ng3 {[%emt 0:02:00]} Qd7 {[%emt 0:01:37]} 32. b5 {[%emt 0:02:18]} Rad8 {[%emt 0:01:31]} 33. Ng4 {[%emt 0:05:19]} Nh4 {[%emt 0:07:57]} 34. Ne5 {[%emt 0:01:19]} Bxe5 {[%emt 0:00:53]} 35. Rxe5 {[%emt 0:00:38]} Qg4 {[%emt 0:00:56]} 36. f5 {[%emt 0:05:01]} gxf5 {[%emt 0:07:44]} 37. Re6 {[%emt 0:01:26]} Be4 {[%emt 0:01:51]} 38. Rxe4 {[%emt 0:00:56]} fxe4 {[%emt 0:00:11]} 39. Rxf8+ {[%emt 0:00:05]} Rxf8 {[%emt 0:00:01]} 40. Qxd4+ {[%emt 0:00:07]} Kg8 {[%emt 0:01:19]} 41. Qd5+ {[%emt 0:01:04]} Kh7 {[%emt 0:01:15]} 42. Bc3 {[%emt 0:00:44]} Nf3+ {[%emt 0:00:26]} 43. Kh1 {[%emt 0:00:09]} Ng5 {[%emt 0:00:18]} 44. Qd7+ {[%emt 0:00:39]} Qxd7 {[%emt 0:00:01]} 0-1

[Event "Western Asian Juniors Chess-ch 2023"]
[Site "Colombo"]
[Date "2023.12.03"]
[Round "7.2"]
[White "Harshavardhan G B"]
[Black "Liyanage, Ranindu Dilshan"]
[Result "1-0"]
[ECO "D38"]
[WhiteElo "2390"]
[BlackElo "2400"]
[Annotator "ChessBase"]
[PlyCount "99"]
[EventDate "2023.11.30"]
[EventCountry "SRI"]
[SourceTitle "playchess.com"]
[Source "ChessBase"]
[SourceQuality "1"]
[TimeControl "5400+30"]

1. d4 {[%emt 0:00:26]} d5 {[%emt 0:04:15]} 2. c4 {[%emt 0:00:21]} e6 {[%emt 0:00:07]} 3. Nc3 {[%emt 0:00:23]} Nf6 {[%emt 0:00:12]} 4. cxd5 {[%emt 0:00:26]} exd5 {[%emt 0:00:07]} 5. Bg5 {[%emt 0:00:09]} Bb4 {[%emt 0:00:21]} 6. e3 {[%emt 0:00:09]} h6 {[%emt 0:00:12]} 7. Bxf6 {[%emt 0:00:12]} Qxf6 {[%emt 0:00:06]} 8. Qb3 {[%emt 0:00:07]} Qd6 {[%emt 0:00:31]} 9. a3 {[%emt 0:00:08]} Bxc3+ {[%emt 0:00:05]} 10. Qxc3 {[%emt 0:00:06]} Bf5 {[%emt 0:00:08]} 11. Nf3 {[%emt 0:00:15]} O-O {[%emt 0:02:57]} 12. Be2 {[%emt 0:00:11]} Nd7 {[%emt 0:00:58]} 13. O-O {[%emt 0:00:11]} Rfe8 {[%emt 0:05:09]} 14. b4 {[%emt 0:00:33]} c6 {[%emt 0:00:48]} 15. a4 {[%emt 0:08:16]} Rac8 {[%emt 0:02:58]} 16. Rfc1 {[%emt 0:01:36]} Nf6 {[%emt 0:04:46]} 17. Ne5 {[%emt 0:14:52]} Ne4 {[%emt 0:03:34]} 18. Qb2 {[%emt 0:00:24]} Qe7 {[%emt 0:07:06]} 19. Bf1 {[%emt 0:02:01]} h5 {[%emt 0:12:01]} 20. Nd3 {[%emt 0:03:31]} h4 {[%emt 0:03:28]} 21. h3 {[%emt 0:00:22]} Nd6 {[%emt 0:02:18]} 22. b5 {[%emt 0:02:27]} Nc4 {[%emt 0:02:23]} 23. Qb4 {[%emt 0:06:11]} Qg5 {[%emt 0:05:43]} 24. Kh1 {[%emt 0:04:07]} Qf6 {[%emt 0:06:50]} 25. Ra2 {[%emt 0:01:42]} cxb5 {[%emt 0:05:46]} 26. axb5 {[%emt 0:01:37]} Nxe3 {[%emt 0:01:21]} 27. Rxc8 {[%emt 0:03:08]} Bxc8 {[%emt 0:02:50]} 28. Qe1 {[%emt 0:03:24]} Qxd4 {[%emt 0:01:33]} 29. fxe3 {[%emt 0:06:23]} Rxe3 {[%emt 0:00:09]} 30. Re2 {[%emt 0:01:42]} Rxe2 {[%emt 0:01:10]} 31. Qxe2 {[%emt 0:00:08]} Bf5 {[%emt 0:06:47]} 32. Ne5 {[%emt 0:02:28]} Qf4 {[%emt 0:02:13]} 33. Nf3 {[%emt 0:01:26]} Be4 {[%emt 0:00:29]} 34. Qf2 {[%emt 0:02:39]} Bxf3 {[%emt 0:00:55]} 35. Kg1 {[%emt 0:07:05]} g5 {[%emt 0:01:59]} 36. Qxf3 {[%emt 0:00:12]} Qxf3 {[%emt 0:00:59]} 37. gxf3 {[%emt 0:00:10]} Kg7 {[%emt 0:00:24]} 38. f4 {[%emt 0:02:39]} Kf6 {[%emt 0:02:44]} 39. fxg5+ {[%emt 0:02:04]} Ke5 {[%emt 0:00:27]} 40. Kf2 {[%emt 0:00:49]} a5 {[%emt 0:03:39]} 41. Ke3 {[%emt 0:01:59]} a4 {[%emt 0:01:55]} 42. Bd3 {[%emt 0:01:12]} a3 {[%emt 0:00:56]} 43. Bb1 {[%emt 0:00:08]} d4+ {[%emt 0:01:43]} 44. Kd3 {[%emt 0:00:22]} Kf4 {[%emt 0:01:59]} 45. Ba2 {[%emt 0:00:16]} Kxg5 {[%emt 0:01:30]} 46. Bxf7 {[%emt 0:00:16]} Kf6 {[%emt 0:00:23]} 47. Ba2 {[%emt 0:00:07]} Ke5 {[%emt 0:00:38]} 48. Bb3 {[%emt 0:00:07]} Kd6 {[%emt 0:00:40]} 49. Kxd4 {[%emt 0:00:08]} Kc7 {[%emt 0:00:13]} 50. Kc5 {[%emt 0:00:09]} 1-0